fUST/lending_fUST_20260625
["ID","MTS","AMOUNT","RATE_DAILY","PERIOD"]
[426429813,1782382243000,-521.60501054,0.00032545,2]
[426429808,1782382243000,-500.0,0.00027368,2]
[426429802,1782382243000,-500.0,0.00027368,2]
[426429815,1782382243000,-172.9,0.00032652,2]
[426429804,1782382243000,-500.0,0.00027368,2]
[426429807,1782382243000,-500.0,0.00027368,2]
[426429803,1782382243000,-484.0919386,0.00027368,2]
[426429801,1782382243000,-500.0,0.00027368,2]
[426429812,1782382243000,-168.13,0.00032414,2]
[426429810,1782382243000,-500.0,0.00030533,3]
[426429816,1782382244000,-4098.26624672,0.00032738,2]
[426429821,1782382244000,-759.31629997,0.00032838,2]
[426429817,1782382244000,-193.128,0.00032808,33]
[426429822,1782382244000,-160.32144509,0.00032838,2]
[426429820,1782382244000,-427.11541873,0.00032838,2]
[426429818,1782382244000,-170.95119013,0.00032808,33]
[426429823,1782382244000,-449.17573128,0.00032838,2]
[426429819,1782382244000,-237.28634374,0.00032838,2]
[426429832,1782382246000,-51.92253718,0.00032838,2]
[426429834,1782382246000,-405.61564893,0.00033485,2]
[426429861,1782382247000,-1176.24211569,0.00034168,2]
[426429859,1782382247000,-500.0,0.00034167,7]
[426429860,1782382247000,-653.46784205,0.00034168,2]
[426429862,1782382247000,-2091.09709456,0.00034168,2]
[426429864,1782382247000,-624.0,0.00034496,120]
[426429857,1782382247000,-500.0,0.00034167,7]
[426429855,1782382247000,-500.0,0.00034167,7]
[426429856,1782382247000,-500.0,0.00034167,7]
[426429863,1782382247000,-3267.33921025,0.00034168,2]
[426429871,1782382247000,-36.78132088,0.00038028,2]
[426429865,1782382247000,-152.1079067,0.00034671,18]
[426429868,1782382247000,-905.587835,0.00036692,2]
[426429875,1782382247000,-150.79,0.00038778,120]
[426429869,1782382247000,-624.0,0.00037236,120]
[426429870,1782382247000,-865.19556235,0.00038028,2]
[426429872,1782382247000,-905.587835,0.00038117,2]
[426429873,1782382247000,-152.1079067,0.00038198,23]
[426429867,1782382247000,-905.587835,0.00035268,2]
[426429866,1782382247000,-3398.11143131,0.00035,120]
[426429858,1782382247000,-500.0,0.00034167,7]
[426429845,1782382247000,-157.10786433,0.00034167,30]
[426429852,1782382247000,-500.0,0.00034167,7]
[426429836,1782382247000,-160.0,0.00033818,2]
[426429835,1782382247000,-234.24104118,0.00033585,13]
[426429837,1782382247000,-160.0,0.00033818,2]
[426429839,1782382247000,-813.98880107,0.00033843,2]
[426429841,1782382247000,-151.1256635,0.00034098,2]
[426429838,1782382247000,-378.86233373,0.00033826,30]
[426429840,1782382247000,-91.59903393,0.00033843,2]
[426429843,1782382247000,-500.0,0.00034167,30]
[426429854,1782382247000,-500.0,0.00034167,7]
[426429844,1782382247000,-500.0,0.00034167,30]
[426429847,1782382247000,-454.86071206,0.00034167,30]
[426429851,1782382247000,-200.12182784,0.00034167,7]
[426429849,1782382247000,-500.0,0.00034167,7]
[426429874,1782382247000,-938.88901897,0.00038491,2]
[426429848,1782382247000,-500.0,0.00034167,7]
[426429846,1782382247000,-342.89213567,0.00034167,30]
[426429853,1782382247000,-500.0,0.00034167,7]
[426429850,1782382247000,-500.0,0.00034167,7]
[426429842,1782382247000,-500.0,0.00034166,30]
[426429876,1782382247000,-150.79,0.00039278,120]
[426429907,1782382247000,-327.2808408,0.00043256,30]
[426429877,1782382247000,-905.587835,0.00039542,2]
[426429908,1782382247000,-151.1358281,0.00043256,30]
[426429901,1782382247000,-151.0,0.00043256,30]
[426429900,1782382247000,-151.0,0.00043256,30]
[426429904,1782382247000,-151.0,0.00043256,30]
[426429905,1782382247000,-151.0,0.00043256,30]
[426429903,1782382247000,-327.2808408,0.00043256,30]
[426429906,1782382247000,-458.4896001,0.00043256,30]
[426429910,1782382247000,-150.79,0.00043278,120]
[426429902,1782382247000,-458.4896001,0.00043256,30]
[426429909,1782382247000,-151.0,0.00043256,30]
[426429916,1782382247000,-327.2808408,0.00043427,30]
[426429915,1782382247000,-327.2808408,0.00043427,30]
[426429914,1782382247000,-1004.0,0.00043423,14]
[426429912,1782382247000,-458.4896001,0.00043327,30]
[426429918,1782382247000,-327.2808408,0.00043556,30]
[426429917,1782382247000,-151.0,0.00043556,30]
[426429919,1782382247000,-151.0,0.00043556,30]
[426429878,1782382247000,-150.79,0.00039778,120]
[426429913,1782382247000,-458.4896001,0.00043327,30]
[426429899,1782382247000,-327.2808408,0.00043256,30]
[426429911,1782382247000,-458.4896001,0.00043327,30]
[426429897,1782382247000,-151.1762223,0.00043256,30]
[426429898,1782382247000,-151.0,0.00043256,30]
[426429881,1782382247000,-905.587835,0.00040966,2]
[426429883,1782382247000,-1087.54735158,0.00041394,2]
[426429879,1782382247000,-150.79,0.00040278,120]
[426429880,1782382247000,-150.79,0.00040778,120]
[426429884,1782382247000,-1005.0,0.00041623,14]
[426429882,1782382247000,-150.79,0.00041278,120]
[426429886,1782382247000,-150.79,0.00042278,120]
[426429896,1782382247000,-327.2808408,0.00043256,30]
[426429885,1782382247000,-150.79,0.00041778,120]
[426429888,1782382247000,-150.79,0.00042778,120]
[426429889,1782382247000,-458.4896001,0.00043227,30]
[426429887,1782382247000,-152.1079067,0.00042732,29]
[426429890,1782382247000,-458.4896001,0.00043227,30]
[426429891,1782382247000,-458.4896001,0.00043227,30]
[426429895,1782382247000,-327.2808408,0.00043256,30]
[426429893,1782382247000,-458.4896001,0.00043227,30]
[426429892,1782382247000,-458.4896001,0.00043227,30]
[426429894,1782382247000,-327.2808408,0.00043256,30]
[426429951,1782382248000,-327.2808408,0.00043556,30]
[426429958,1782382248000,-458.4896001,0.00043556,30]
[426429956,1782382248000,-327.2808408,0.00043556,30]
[426429950,1782382248000,-458.4896001,0.00043556,30]
[426429949,1782382248000,-458.4896001,0.00043556,30]
[426429948,1782382248000,-327.2808408,0.00043556,30]
[426429946,1782382248000,-327.2808408,0.00043556,30]
[426429947,1782382248000,-458.4896001,0.00043556,30]
[426429952,1782382248000,-458.4896001,0.00043556,30]
[426429953,1782382248000,-327.2808408,0.00043556,30]
[426429957,1782382248000,-458.4896001,0.00043556,30]
[426429969,1782382248000,-327.2808408,0.00043756,30]
[426429960,1782382248000,-458.4896001,0.00043556,30]
[426429970,1782382248000,-327.2808408,0.00043756,30]
[426429961,1782382248000,-458.4896001,0.00043556,30]
[426429959,1782382248000,-458.4896001,0.00043556,30]
[426429965,1782382248000,-264.0120754,0.00043656,30]
[426429962,1782382248000,-458.4896001,0.00043556,30]
[426429963,1782382248000,-458.4896001,0.00043556,30]
[426429967,1782382248000,-327.2808408,0.00043756,30]
[426429966,1782382248000,-327.2808408,0.00043656,30]
[426429942,1782382248000,-458.4896001,0.00043556,30]
[426429954,1782382248000,-159.8437876,0.00043556,30]
[426429939,1782382248000,-458.4896001,0.00043556,30]
[426429922,1782382248000,-458.4896001,0.00043556,30]
[426429938,1782382248000,-458.4896001,0.00043556,30]
[426429920,1782382248000,-151.0,0.00043556,30]
[426429921,1782382248000,-151.0,0.00043556,30]
[426429930,1782382248000,-458.4896001,0.00043556,30]
[426429968,1782382248000,-327.2808408,0.00043756,30]
[426429926,1782382248000,-458.4896001,0.00043556,30]
[426429927,1782382248000,-60.83610711,0.00043556,30]
[426429931,1782382248000,-327.2808408,0.00043556,30]
[426429925,1782382248000,-458.4896001,0.00043556,30]
[426429932,1782382248000,-327.2808408,0.00043556,30]
[426429923,1782382248000,-336.801809,0.00043556,30]
[426429941,1782382248000,-327.2808408,0.00043556,30]
[426429924,1782382248000,-458.4896001,0.00043556,30]
[426429928,1782382248000,-397.65349299,0.00043556,30]
[426429934,1782382248000,-327.2808408,0.00043556,30]
[426429944,1782382248000,-458.4896001,0.00043556,30]
[426429933,1782382248000,-458.4896001,0.00043556,30]
[426429945,1782382248000,-458.4896001,0.00043556,30]
[426429935,1782382248000,-458.4896001,0.00043556,30]
[426429943,1782382248000,-458.4896001,0.00043556,30]
[426429937,1782382248000,-327.2808408,0.00043556,30]
[426429940,1782382248000,-458.4896001,0.00043556,30]
[426429936,1782382248000,-327.2808408,0.00043556,30]
[426429929,1782382248000,-327.2808408,0.00043556,30]
[426429964,1782382248000,-458.4896001,0.00043656,30]
[426429955,1782382248000,-327.2808408,0.00043556,30]
[426429971,1782382248000,-327.2808408,0.00043756,30]
[426429999,1782382248000,-151.0,0.00044078,30]
[426430000,1782382248000,-458.4896001,0.00044078,30]
[426429997,1782382248000,-327.2808408,0.00044078,30]
[426430003,1782382248000,-327.2808408,0.00044078,30]
[426430002,1782382248000,-151.0,0.00044078,30]
[426430004,1782382248000,-458.4896001,0.00044078,30]
[426430001,1782382248000,-327.2808408,0.00044078,30]
[426430008,1782382248000,-327.2808408,0.00044078,30]
[426430006,1782382248000,-458.4896001,0.00044078,30]
[426430005,1782382248000,-151.0,0.00044078,30]
[426429998,1782382248000,-458.4896001,0.00044078,30]
[426430010,1782382248000,-458.4896001,0.00044078,30]
[426430009,1782382248000,-230.2189879,0.00044078,30]
[426430011,1782382248000,-151.0,0.00044078,30]
[426430012,1782382248000,-327.2808408,0.00044078,30]
[426430013,1782382248000,-458.4896001,0.00044078,30]
[426430014,1782382248000,-151.0,0.00044078,30]
[426430015,1782382248000,-458.4896001,0.00044078,30]
[426430017,1782382248000,-458.4896001,0.00044078,30]
[426430019,1782382248000,-458.4896001,0.00044078,30]
[426430018,1782382248000,-151.0,0.00044078,30]
[426430016,1782382248000,-327.2808408,0.00044078,30]
[426430020,1782382248000,-151.0,0.00044078,30]
[426429996,1782382248000,-151.0,0.00044078,30]
[426430007,1782382248000,-327.2808408,0.00044078,30]
[426429991,1782382248000,-458.4896001,0.00044078,30]
[426429972,1782382248000,-327.2808408,0.00043756,30]
[426429975,1782382248000,-327.2808408,0.00043756,30]
[426429983,1782382248000,-327.2808408,0.00044078,30]
[426429974,1782382248000,-327.2808408,0.00043756,30]
[426429978,1782382248000,-327.2808408,0.00043756,30]
[426429981,1782382248000,-160.0,0.00044064,2]
[426429993,1782382248000,-151.0,0.00044078,30]
[426429976,1782382248000,-327.2808408,0.00043756,30]
[426429977,1782382248000,-327.2808408,0.00043756,30]
[426429979,1782382248000,-327.2808408,0.00043756,30]
[426429980,1782382248000,-150.79,0.00043778,120]
[426429982,1782382248000,-327.2808408,0.00044078,30]
[426429995,1782382248000,-327.2808408,0.00044078,30]
[426429985,1782382248000,-151.0,0.00044078,30]
[426429990,1782382248000,-151.0,0.00044078,30]
[426429994,1782382248000,-458.4896001,0.00044078,30]
[426429992,1782382248000,-327.2808408,0.00044078,30]
[426429989,1782382248000,-248.1905236,0.00044078,30]
[426429973,1782382248000,-327.2808408,0.00043756,30]
[426429984,1782382248000,-458.4896001,0.00044078,30]
[426430021,1782382248000,-143.38442883,0.00044078,30]
[426429988,1782382248000,-458.4896001,0.00044078,30]
[426429986,1782382248000,-327.2808408,0.00044078,30]
[426429987,1782382248000,-151.0,0.00044078,30]
[426430034,1782382330000,417.15472785,0.00027159,30]
[426430035,1782382393000,210.2699472,0.0003,120]
[426430049,1782382671000,504.64787326,0.0003,120]
[426430055,1782382711000,487.82627749,0.0003,120]
[426430069,1782382992000,390.26102199,0.0003,120]
[426430071,1782383032000,312.20881759,0.0003,120]
[426430078,1782383313000,249.76705408,0.0003,120]
[426430079,1782383353000,199.81364326,0.0003,120]
[426430110,1782383432000,-163.69,0.00029175,30]
[426430106,1782383432000,-4625.42231847,0.00025069,2]
[426430107,1782383432000,-225.02518625,0.00026097,2]
[426430108,1782383432000,-483.0725563,0.00027158,2]
[426430109,1782383432000,-250.42250627,0.00027581,6]
[426430114,1782383432000,-312.50130013,0.00030745,2]
[426430111,1782383432000,-1503.7065018,0.00029195,2]
[426430113,1782383432000,-449.72184752,0.00030745,2]
[426430112,1782383432000,-4372.35600563,0.00030745,2]
[426430234,1782383439000,-500.0,0.00031334,2]
[426430230,1782383439000,-500.0,0.00031334,2]
[426430226,1782383439000,-500.0,0.00031334,2]
[426430228,1782383439000,-161.04322721,0.00031334,2]
[426430224,1782383439000,-500.0,0.00031334,2]
[426430222,1782383439000,-500.0,0.00031334,2]
[426430220,1782383439000,-500.0,0.00031334,2]
[426430208,1782383439000,-500.0,0.00031334,2]
[426430210,1782383439000,-510.2873707,0.00031334,2]
[426430218,1782383439000,-500.0,0.00031334,2]
[426430206,1782383439000,-500.0,0.00031334,2]
[426430214,1782383439000,-500.0,0.00031334,2]
[426430200,1782383439000,-500.0,0.00031334,2]
[426430232,1782383439000,-500.0,0.00031334,2]
[426430202,1782383439000,-500.0,0.00031334,2]
[426430212,1782383439000,-500.0,0.00031334,2]
[426430186,1782383439000,-199.81364326,0.000309,120]
[426430188,1782383439000,-500.0,0.00031334,2]
[426430184,1782383439000,-4974.78000274,0.00030745,2]
[426430196,1782383439000,-500.0,0.00031334,2]
[426430198,1782383439000,-500.0,0.00031334,2]
[426430182,1782383439000,-4465.67259748,0.00030745,2]
[426430194,1782383439000,-500.0,0.00031334,2]
[426430192,1782383439000,-500.0,0.00031334,2]
[426430190,1782383439000,-500.0,0.00031334,2]
[426430216,1782383439000,-500.0,0.00031334,2]
[426430204,1782383439000,-391.40178539,0.00031334,2]
[426430236,1782383439000,-500.0,0.00031334,2]
[426430238,1782383439000,-500.0,0.00031334,2]
[426430272,1782383439000,-500.0,0.00032406,2]
[426430277,1782383439000,-61041.21175528,0.00032408,120]
[426430274,1782383439000,-500.0,0.00032406,2]
[426430276,1782383439000,-160.0,0.00032408,120]
[426430275,1782383439000,-211.222,0.00032407,32]
[426430273,1782383439000,-188.75753628,0.00032406,2]
[426430271,1782383439000,-500.0,0.00032406,2]
[426430265,1782383439000,-500.0,0.00032406,2]
[426430253,1782383439000,-500.0,0.00032406,2]
[426430267,1782383439000,-500.0,0.00032406,2]
[426430243,1782383439000,-20145.16958743,0.00031434,2]
[426430261,1782383439000,-500.0,0.00032406,2]
[426430263,1782383439000,-500.0,0.00032406,2]
[426430264,1782383439000,-500.0,0.00032406,2]
[426430240,1782383439000,-500.0,0.00031334,2]
[426430241,1782383439000,-3585.98296588,0.00031335,2]
[426430245,1782383439000,-9097.8958781,0.00031435,120]
[426430255,1782383439000,-500.0,0.00032406,2]
[426430259,1782383439000,-500.0,0.00032406,2]
[426430247,1782383439000,-199.81364326,0.000318,120]
[426430266,1782383439000,-500.0,0.00032406,2]
[426430268,1782383439000,-500.0,0.00032406,2]
[426430251,1782383439000,-500.0,0.00032406,2]
[426430249,1782383439000,-495.82742589,0.00032404,2]
[426430269,1782383439000,-500.0,0.00032406,2]
[426430257,1782383439000,-206.89197492,0.00032406,2]
[426430288,1782383441000,-500.0,0.00031334,2]
[426430284,1782383441000,-500.0,0.00031334,2]
[426430286,1782383441000,-500.0,0.00031334,2]
[426430287,1782383441000,-500.0,0.00031334,2]
[426430291,1782383441000,-420.27355947,0.00031334,2]
[426430289,1782383441000,-500.0,0.00031334,2]
[426430290,1782383441000,-500.0,0.00031334,2]
[426430292,1782383441000,-79.72644053,0.00031334,2]
[426430293,1782383441000,-2999.32355947,0.00032408,120]
[426430285,1782383441000,-500.0,0.00031334,2]
[426430307,1782383447000,-5000.0,0.00032179,2]
[426430308,1782383447000,-18324.22605347,0.00032408,120]
[426430309,1782383635000,199.81364326,0.0003,120]
[426433174,1782383674000,199.81364326,0.0003,120]
[426435709,1782384137000,1000.0,0.00030137,30]
[426435710,1782384148000,417.15472785,0.00027185,30]
[426435716,1782384557000,41089.56399843,0.0003,120]
[426435747,1782384631000,-500.0,0.00030744,3]
[426435750,1782384631000,-160.0,0.00032173,2]
[426435748,1782384631000,-500.0,0.00031432,3]
[426435738,1782384631000,-5000.0,0.00020023,2]
[426435744,1782384631000,-186.45770655,0.00024658,7]
[426435749,1782384631000,-500.0,0.00031433,3]
[426435745,1782384631000,-193.65384319,0.0002737,2]
[426435742,1782384631000,-300.0,0.00020635,2]
[426435740,1782384631000,-706.93896819,0.00020225,2]
[426435746,1782384631000,-500.0,0.00030744,3]
[426435751,1782384631000,-160.0,0.00032174,2]
[426435743,1782384631000,-193.65384319,0.00021054,2]
[426435762,1782384631000,-190.37049388,0.00033605,2]
[426435741,1782384631000,-230.2429221,0.00020225,2]
[426435761,1782384631000,-1710.47515441,0.00033093,2]
[426435765,1782384631000,-310.68642572,0.00033605,2]
[426435754,1782384631000,-190.05279493,0.00032406,2]
[426435766,1782384631000,-70.05456204,0.00033605,2]
[426435764,1782384631000,-244.66442488,0.00033605,2]
[426435760,1782384631000,-261.12635583,0.00032755,2]
[426435759,1782384631000,-160.0,0.00032497,2]
[426435757,1782384631000,-274.50945722,0.00032407,3]
[426435767,1782384631000,-235.61368596,0.00033605,2]
[426435756,1782384631000,-500.0,0.00032406,3]
[426435758,1782384631000,-160.0,0.00032497,2]
[426435755,1782384631000,-760.21117974,0.00032406,2]
[426435753,1782384631000,-604.1929731,0.00032406,2]
[426435752,1782384631000,-562.14,0.00032326,120]
[426435763,1782384631000,-190.93262961,0.00033605,2]
[426435882,1782384638000,-171.1693601,0.00034022,2]
[426435901,1782384638000,-500.0,0.00034726,30]
[426435891,1782384638000,-500.0,0.00034726,30]
[426435885,1782384638000,-288.57860117,0.00034293,2]
[426435880,1782384638000,-509.00688849,0.00034022,2]
[426435856,1782384638000,-640.05551574,0.0003402,7]
[426435862,1782384638000,-500.0,0.00034021,30]
[426435878,1782384638000,-168.21916992,0.00034022,2]
[426435876,1782384638000,-325.57615847,0.00034022,2]
[426435893,1782384638000,-500.0,0.00034726,30]
[426435884,1782384638000,-198.88769138,0.00034022,2]
[426435889,1782384638000,-500.0,0.00034726,30]
[426435905,1782384638000,-500.0,0.00034726,30]
[426435903,1782384638000,-219.70406999,0.00034726,30]
[426435899,1782384638000,-151.5,0.00034726,30]
[426435895,1782384638000,-151.5,0.00034726,30]
[426435897,1782384638000,-500.0,0.00034726,30]
[426435920,1782384638000,-276.0,0.00035,38]
[426435922,1782384638000,-500.0,0.00035713,15]
[426435926,1782384638000,-492.0,0.00035713,15]
[426435910,1782384638000,-500.0,0.00034726,30]
[426435924,1782384638000,-500.0,0.00035713,15]
[426435908,1782384638000,-500.0,0.00034726,30]
[426435860,1782384638000,-500.0,0.00034021,30]
[426435887,1782384638000,-3137.73509511,0.00034626,2]
[426435858,1782384638000,-432.37797615,0.0003402,7]
[426435828,1782384638000,-349.83114928,0.00034012,2]
[426435870,1782384638000,-185.6571347,0.00034022,2]
[426435796,1782384638000,-162.78807924,0.00033614,2]
[426435798,1782384638000,-196.69969243,0.00034012,2]
[426435800,1782384638000,-259.59251069,0.00034012,2]
[426435802,1782384638000,-169.68116521,0.00034012,2]
[426435792,1782384638000,-18.88975828,0.00033605,2]
[426435794,1782384638000,-177.65248813,0.00033614,2]
[426435804,1782384638000,-32.03410994,0.00034012,2]
[426435928,1782384638000,-500.0,0.00035713,15]
[426435838,1782384638000,-163.93145545,0.00034012,2]
[426435842,1782384638000,-571.11148164,0.00034012,2]
[426435840,1782384638000,-158.39512871,0.00034012,2]
[426435844,1782384638000,-216.07656686,0.00034012,2]
[426435846,1782384638000,-489.32884977,0.00034012,2]
[426435831,1782384638000,-177.85667749,0.00034012,2]
[426435848,1782384638000,-500.0,0.0003402,7]
[426435836,1782384638000,-170.30012608,0.00034012,2]
[426435852,1782384638000,-502.22635028,0.0003402,7]
[426435834,1782384638000,-153.45483027,0.00034012,2]
[426435832,1782384638000,-165.68334842,0.00034012,2]
[426435850,1782384638000,-500.0,0.0003402,7]
[426435854,1782384638000,-500.0,0.0003402,7]
[426435864,1782384638000,-500.0,0.00034021,30]
[426435866,1782384638000,-500.0,0.00034022,2]
[426435868,1782384638000,-165.24032173,0.00034022,2]
[426435872,1782384638000,-176.10768174,0.00034022,2]
[426435874,1782384638000,-355.30497627,0.00034022,2]
[426435912,1782384638000,-151.5,0.00034726,30]
[426435907,1782384638000,-500.0,0.00034726,30]
[426435916,1782384638000,-202.74633563,0.00034726,30]
[426435986,1782384638000,-492.0,0.00035713,15]
[426435989,1782384638000,-492.0,0.00035713,15]
[426435987,1782384638000,-500.0,0.00035713,15]
[426435997,1782384638000,-438.4988153,0.00035713,15]
[426436001,1782384638000,-500.0,0.00035713,15]
[426435999,1782384638000,-492.0,0.00035713,15]
[426436011,1782384638000,-492.0,0.00035713,15]
[426436002,1782384638000,-492.0,0.00035713,15]
[426436005,1782384638000,-326.97277043,0.00035713,15]
[426436013,1782384638000,-492.0,0.00035713,15]
[426436009,1782384638000,-492.0,0.00035713,15]
[426436007,1782384638000,-492.0,0.00035713,15]
[426436017,1782384638000,-492.0,0.00035713,15]
[426436019,1782384638000,-492.0,0.00035713,15]
[426436023,1782384638000,-203.44499694,0.00035788,8]
[426436021,1782384638000,-513.90542051,0.00035713,15]
[426436027,1782384638000,-164.82562291,0.00035788,2]
[426436029,1782384638000,-211.053736,0.00035853,2]
[426436031,1782384638000,-494.82438244,0.00035887,15]
[426436037,1782384638000,-500.0,0.00035887,15]
[426436035,1782384638000,-500.0,0.00035887,15]
[426436033,1782384638000,-500.0,0.00035887,15]
[426436015,1782384638000,-492.0,0.00035713,15]
[426436025,1782384638000,-311.7440013,0.00035788,8]
[426435914,1782384638000,-388.57234896,0.00034726,30]
[426435982,1782384638000,-492.0,0.00035713,15]
[426435980,1782384638000,-500.0,0.00035713,15]
[426435991,1782384638000,-61.5011847,0.00035713,15]
[426435984,1782384638000,-500.0,0.00035713,15]
[426435918,1782384638000,-300.0,0.00035,30]
[426435930,1782384638000,-500.0,0.00035713,15]
[426435932,1782384638000,-500.0,0.00035713,15]
[426435934,1782384638000,-492.0,0.00035713,15]
[426435939,1782384638000,-492.0,0.00035713,15]
[426435941,1782384638000,-500.0,0.00035713,15]
[426435937,1782384638000,-500.0,0.00035713,15]
[426435978,1782384638000,-492.0,0.00035713,15]
[426435943,1782384638000,-500.0,0.00035713,15]
[426435947,1782384638000,-500.0,0.00035713,15]
[426435952,1782384638000,-492.0,0.00035713,15]
[426435945,1782384638000,-492.0,0.00035713,15]
[426435950,1782384638000,-500.0,0.00035713,15]
[426435936,1782384638000,-500.0,0.00035713,15]
[426435956,1782384638000,-500.0,0.00035713,15]
[426435960,1782384638000,-500.0,0.00035713,15]
[426435958,1782384638000,-492.0,0.00035713,15]
[426435962,1782384638000,-492.0,0.00035713,15]
[426435954,1782384638000,-500.0,0.00035713,15]
[426435966,1782384638000,-500.0,0.00035713,15]
[426435972,1782384638000,-237.202106,0.00035713,15]
[426435974,1782384638000,-492.0,0.00035713,15]
[426435970,1782384638000,-500.0,0.00035713,15]
[426435976,1782384638000,-500.0,0.00035713,15]
[426435964,1782384638000,-500.0,0.00035713,15]
[426435949,1782384638000,-492.0,0.00035713,15]
[426435968,1782384638000,-492.0,0.00035713,15]
[426436049,1782384639000,-500.0,0.00035887,15]
[426436065,1782384639000,-500.0,0.00035887,15]
[426436053,1782384639000,-500.0,0.00035887,15]
[426436061,1782384639000,-500.0,0.00035887,15]
[426436051,1782384639000,-500.0,0.00035887,15]
[426436039,1782384639000,-500.0,0.00035887,15]
[426436047,1782384639000,-500.0,0.00035887,15]
[426436045,1782384639000,-500.0,0.00035887,15]
[426436041,1782384639000,-500.0,0.00035887,15]
[426436043,1782384639000,-532.13027539,0.00035887,15]
[426436059,1782384639000,-500.0,0.00035887,15]
[426436055,1782384639000,-500.0,0.00035887,15]
[426436057,1782384639000,-500.0,0.00035887,15]
[426436076,1782384639000,-500.0,0.00035887,15]
[426436078,1782384639000,-500.0,0.00035887,15]
[426436095,1782384639000,-1183.71550276,0.00035888,120]
[426436090,1782384639000,-874.58951452,0.00035888,120]
[426436088,1782384639000,-116544.67863443,0.00035888,120]
[426436086,1782384639000,-2302.48743038,0.00035888,120]
[426436069,1782384639000,-500.0,0.00035887,15]
[426436092,1782384639000,-2081.6340056,0.00035888,120]
[426436079,1782384639000,-300.0,0.00035887,15]
[426436073,1782384639000,-182.83912476,0.00035887,15]
[426436071,1782384639000,-500.0,0.00035887,15]
[426436083,1782384639000,-500.0,0.00035887,15]
[426436067,1782384639000,-500.0,0.00035887,15]
[426436081,1782384639000,-500.0,0.00035887,15]
[426436063,1782384639000,-500.0,0.00035887,15]
[426436273,1782384640000,-2620.24758729,0.00035888,120]
[426436505,1782384643000,-0.7111648,0.00035888,120]
[426436503,1782384643000,-3506.80553173,0.00035888,120]
[426436510,1782384650000,-8197.14939237,0.00035888,120]
[426436509,1782384650000,-237.78394619,0.00034019,7]
[426436525,1782384987000,183906.66182968,0.000119,120]
[426436526,1782385051000,152.0,0.00027186,30]
[426436528,1782385066000,22399.49347011,0.00012,2]
[426436527,1782385066000,4653.60845687,0.00012,2]
[426436529,1782385067000,386.95187639,0.00030137,120]
[426436530,1782385069000,2600.50652989,0.000118,5]
[426436532,1782385083000,1361.58381722,0.0001,2]
[426436533,1782385254000,-3085.82717456,0.000118,5]
[426436590,1782385833000,-452.58239313,0.00029402,2]
[426436588,1782385833000,-193.65384319,0.000118,2]
[426436589,1782385833000,-193.65384318,0.00014589,2]
[426436587,1782385833000,-5259.87631081,0.000118,5]
[426436586,1782385833000,-693.99175762,0.00011449,2]
[426436585,1782385833000,-2391.83541694,0.00011335,2]
[426436584,1782385833000,-433.45811007,0.00011222,2]
[426436643,1782385838000,-175.878113,0.00034455,2]
[426436640,1782385838000,-372.7717251,0.00032032,2]
[426436639,1782385838000,-341.19132599,0.00031684,2]
[426436641,1782385838000,-175.878113,0.00033063,2]
[426436636,1782385838000,-2825.78834125,0.00031581,2]
[426436632,1782385838000,-256.70028231,0.00030137,2]
[426436634,1782385838000,-157.72531568,0.00030948,2]
[426436631,1782385838000,-243.29971769,0.00030137,2]
[426436642,1782385838000,-470.02744049,0.00034012,2]
[426436630,1782385838000,-1480.83512079,0.00029402,2]
[426436638,1782385838000,-656.65453083,0.00031684,2]
[426436644,1782385838000,-441.7695,0.00035,120]
[426436633,1782385838000,-142.27468432,0.00030948,2]
[426436647,1782385838000,-392.29180742,0.00035412,7]